fUST/lending_fUST_20260111
["ID","MTS","AMOUNT","RATE_DAILY","PERIOD"]
[401267302,1768085443726,-500.0,0.00036712,30]
[401267304,1768085443739,-198.99431886,0.00036712,30]
[401267306,1768085443750,-504.05122282,0.00036712,30]
[401267307,1768085443761,-500.0,0.00036712,30]
[401267309,1768085443772,-500.0,0.00036712,30]
[401267311,1768085443784,-500.0,0.00036712,30]
[401267313,1768085443795,-467.71800202,0.00036712,30]
[401267315,1768085443806,-506.59663788,0.00036712,30]
[401267317,1768085443817,-222.47283304,0.00036712,30]
[401267319,1768085443828,-247.29893565,0.00036712,30]
[401267321,1768085443839,-500.0,0.00036712,30]
[401267323,1768085443851,-167.71962131,0.00036712,30]
[401267325,1768085443867,-500.0,0.00036712,30]
[401267327,1768085443879,-516.29475273,0.00036712,30]
[401267329,1768085443889,-238.58636082,0.00036712,30]
[401267331,1768085443899,-288.16366655,0.00036712,30]
[401267333,1768085443910,-502.59646972,0.00036712,30]
[401267335,1768085443921,-570.97351923,0.00036712,30]
[401267336,1768085443933,-508.89286764,0.00036712,30]
[401267338,1768085443945,-358.64493723,0.00036712,30]
[401267341,1768085443957,-521.57977435,0.00036712,30]
[401267343,1768085443968,-500.0,0.00036712,30]
[401267344,1768085443981,-500.66595312,0.00036712,30]
[401267346,1768085443992,-500.0,0.00036712,30]
[401267348,1768085444004,-502.74272477,0.00036712,30]
[401267351,1768085444016,-500.0,0.00036712,30]
[401267352,1768085444029,-540.05543538,0.00036712,30]
[401267354,1768085444041,-497.82020642,0.00036712,30]
[401267357,1768085444053,-500.0,0.00036712,30]
[401267358,1768085444063,-500.0,0.00036712,30]
[401267360,1768085444073,-500.0,0.00036712,30]
[401267362,1768085444083,-500.0,0.00036712,30]
[401267364,1768085444092,-500.17912256,0.00036712,30]
[401267366,1768085444102,-500.0,0.00036712,30]
[401267368,1768085444114,-500.0,0.00036712,30]
[401267370,1768085444125,-500.0,0.00036712,30]
[401267372,1768085444138,-500.0,0.00036712,30]
[401267374,1768085444149,-500.0,0.00036712,30]
[401267376,1768085444161,-500.0,0.00036712,30]
[401267378,1768085444170,-500.0,0.00036712,30]
[401267379,1768085444180,-500.0,0.00036712,30]
[401267381,1768085444191,-500.0,0.00036712,30]
[401267383,1768085444201,-312.66110017,0.00036712,30]
[401267385,1768085444213,-500.0,0.00036712,2]
[401267387,1768085444225,-500.0,0.00036712,2]
[401267389,1768085444235,-600.91842016,0.00036712,2]
[401267391,1768085444245,-500.0,0.00036712,30]
[401267393,1768085444256,-500.0,0.00036712,30]
[401267395,1768085444266,-500.0,0.00036712,30]
[401267396,1768085444275,-500.0,0.00036712,30]
[401267398,1768085444286,-500.0,0.00036712,30]
[401267400,1768085444296,-508.7194393,0.00036712,30]
[401267402,1768085444306,-163.471192,0.00036712,31]
[401267404,1768085444316,-508.66794221,0.00036712,30]
[401267406,1768085444327,-500.0,0.00036712,2]
[401267408,1768085444337,-500.0,0.00036712,2]
[401267410,1768085444347,-500.0,0.00036712,2]
[401267411,1768085444358,-500.0,0.00036712,2]
[401267413,1768085444370,-500.0,0.00036712,2]
[401267415,1768085444380,-500.0,0.00036712,2]
[401267417,1768085444391,-500.0,0.00036712,2]
[401267419,1768085444402,-309.3542792,0.00036712,2]
[401267421,1768085444412,-151.0,0.00036712,31]
[401267423,1768085444423,-507.80127239,0.00036712,30]
[401267425,1768085444433,-502.5337113,0.00036712,30]
[401267426,1768085444444,-530.10481724,0.00036712,30]
[401267427,1768085444455,-527.48006383,0.00036712,30]
[401267428,1768085444466,-500.0,0.00036712,30]
[401267429,1768085444477,-500.0,0.00036712,30]
[401267430,1768085444487,-500.0,0.00036712,30]
[401267431,1768085444499,-500.0,0.00036712,30]
[401267432,1768085444509,-500.0,0.00036712,30]
[401267433,1768085444520,-500.0,0.00036712,30]
[401267434,1768085444530,-500.0,0.00036712,30]
[401267435,1768085444541,-500.0,0.00036712,30]
[401267436,1768085444553,-500.0,0.00036712,30]
[401267437,1768085444567,-500.0,0.00036712,30]
[401267438,1768085444577,-498.14054854,0.00036712,30]
[401267439,1768085444588,-431.8588478,0.00036712,30]
[401267440,1768085444598,-259.2551717,0.00036712,30]
[401267441,1768085444609,-536.12714614,0.00036712,30]
[401267442,1768085444620,-600.27321135,0.00036712,30]
[401267443,1768085444631,-522.13898206,0.00036712,30]
[401267444,1768085444642,-524.56766905,0.00036712,30]
[401267445,1768085444653,-603.41244576,0.00036712,30]
[401267446,1768085444664,-507.03681344,0.00036712,30]
[401267447,1768085444675,-535.19163838,0.00036712,30]
[401267448,1768085444685,-501.97462233,0.00036712,30]
[401267449,1768085444696,-500.0,0.00036712,30]
[401267450,1768085444707,-500.0,0.00036712,30]
[401267451,1768085444718,-500.0,0.00036712,30]
[401267452,1768085444729,-500.0,0.00036712,30]
[401267453,1768085444739,-500.0,0.00036712,30]
[401267454,1768085444750,-151.0,0.00036712,31]
[401267455,1768085444761,-500.0,0.00036712,30]
[401267456,1768085444772,-500.0,0.00036712,30]
[401267457,1768085444783,-500.0,0.00036712,30]
[401267458,1768085444793,-293.31572516,0.00036712,30]
[401267459,1768085444804,-151.0,0.00036712,31]
[401267460,1768085444815,-516.10438767,0.00036712,30]
[401267461,1768085444826,-151.0,0.00036712,31]
[401267462,1768085444837,-593.7873052,0.00036712,30]
[401267464,1768085444848,-502.69735229,0.00036712,30]
[401267465,1768085444862,-520.918343,0.00036712,30]
[401267478,1768085444873,-537.13184528,0.00036712,30]
[401267481,1768085445017,-508.9699297,0.00036712,30]
[401267483,1768085445027,-500.0,0.00036712,30]
[401267485,1768085445037,-500.0,0.00036712,30]
[401267487,1768085445046,-500.0,0.00036712,30]
[401267489,1768085445056,-500.0,0.00036712,30]
[401267491,1768085445066,-500.0,0.00036712,30]
[401267494,1768085445075,-500.0,0.00036712,30]
[401267496,1768085445084,-166.15880997,0.00036712,30]
[401267497,1768085445093,-503.08173337,0.00036712,30]
[401267499,1768085445102,-504.72849029,0.00036712,30]
[401267501,1768085445112,-526.6387612,0.00036712,30]
[401267503,1768085445121,-337.12628961,0.00036712,30]
[401267506,1768085445130,-532.51814572,0.00036712,30]
[401267508,1768085445139,-505.81690388,0.00036712,30]
[401267509,1768085445148,-508.05085412,0.00036712,30]
[401267511,1768085445158,-500.0,0.00036712,30]
[401267513,1768085445167,-505.62792653,0.00036712,30]
[401267515,1768085445176,-516.96434315,0.00036712,30]
[401267517,1768085445185,-500.47158025,0.00036712,30]
[401267519,1768085445194,-500.0,0.00036712,2]
[401267521,1768085445204,-500.0,0.00036712,2]
[401267524,1768085445214,-500.0,0.00036712,2]
[401267526,1768085445223,-500.0,0.00036712,2]
[401267527,1768085445232,-500.0,0.00036712,2]
[401267529,1768085445241,-500.0,0.00036712,2]
[401267532,1768085445251,-500.0,0.00036712,2]
[401267534,1768085445261,-500.0,0.00036712,2]
[401267536,1768085445270,-500.0,0.00036712,2]
[401267537,1768085445279,-500.0,0.00036712,2]
[401267539,1768085445288,-500.0,0.00036712,2]
[401267541,1768085445297,-500.0,0.00036712,2]
[401267543,1768085445307,-500.0,0.00036712,2]
[401267545,1768085445316,-500.0,0.00036712,2]
[401267547,1768085445325,-500.0,0.00036712,2]
[401267549,1768085445335,-500.0,0.00036712,2]
[401267551,1768085445344,-500.0,0.00036712,2]
[401267554,1768085445355,-623.16388011,0.00036712,2]
[401267555,1768085445365,-535.05587433,0.00036712,30]
[401267557,1768085445375,-514.03234991,0.00036712,30]
[401267559,1768085445384,-500.0,0.00036712,30]
[401267561,1768085445393,-265.85827817,0.00036712,30]
[401267563,1768085445403,-502.91233106,0.00036712,30]
[401267565,1768085445412,-506.86710627,0.00036712,30]
[401267568,1768085445422,-151.0,0.00036712,31]
[401267570,1768085445431,-502.15565883,0.00036712,30]
[401267571,1768085445441,-313.8297347,0.00036712,30]
[401267573,1768085445451,-567.48725532,0.00036712,30]
[401267576,1768085445460,-502.70071408,0.00036712,30]
[401267577,1768085445470,-501.75806414,0.00036712,30]
[401267580,1768085445480,-526.00258127,0.00036712,30]
[401267582,1768085445489,-151.0,0.00036712,28]
[401267583,1768085445499,-151.0,0.00036712,28]
[401267586,1768085445512,-514.56204005,0.00036712,30]
[401267588,1768085445522,-502.23705915,0.00036712,30]
[401267590,1768085445531,-315.18853,0.00036712,31]
[401267592,1768085445541,-315.18853,0.00036712,31]
[401267594,1768085445550,-315.18853,0.00036712,31]
[401267596,1768085445560,-508.03333953,0.00036712,30]
[401267598,1768085445569,-540.54333116,0.00036712,30]
[401267600,1768085445579,-501.89111587,0.00036712,30]
[401267602,1768085445588,-315.18853,0.00036712,31]
[401267604,1768085445598,-503.2619597,0.00036712,30]
[401267606,1768085445607,-502.66091755,0.00036712,30]
[401267608,1768085445616,-503.06777824,0.00036712,30]
[401267610,1768085445626,-506.12528413,0.00036712,30]
[401267612,1768085445635,-151.0,0.00036712,31]
[401267614,1768085445644,-151.0,0.00036712,31]
[401267616,1768085445653,-500.0,0.00036712,30]
[401267618,1768085445663,-507.24783231,0.00036712,30]
[401267620,1768085445672,-2479.36,0.00036712,30]
[401267622,1768085445681,-505.46772079,0.00036712,30]
[401267624,1768085445690,-2479.36,0.00036712,30]
[401267626,1768085445699,-2479.36,0.00036712,30]
[401267628,1768085445708,-2479.36,0.00036712,30]
[401267630,1768085445717,-160.29273,0.00036712,31]
[401267632,1768085445726,-2479.36,0.00036712,30]
[401267634,1768085445736,-2479.36,0.00036712,30]
[401267636,1768085445745,-2479.36,0.00036712,30]
[401267638,1768085445753,-2479.36,0.00036712,30]
[401267640,1768085445763,-2479.36,0.00036712,30]
[401267642,1768085445772,-2479.36,0.00036712,30]
[401267644,1768085445781,-2479.36,0.00036712,30]
[401267646,1768085445789,-2479.36,0.00036712,30]
[401267648,1768085445798,-2479.36,0.00036712,30]
[401267650,1768085445807,-2479.36,0.00036712,30]
[401267652,1768085445816,-2479.36,0.00036712,30]
[401267654,1768085445825,-2479.36,0.00036712,30]
[401267656,1768085445835,-2479.36,0.00036712,30]
[401267658,1768085445844,-2479.36,0.00036712,30]
[401267660,1768085445853,-501.02569077,0.00036712,30]
[401267662,1768085445866,-2479.36,0.00036712,30]
[401267664,1768085445875,-2479.36,0.00036712,30]
[401267666,1768085445884,-2479.36,0.00036712,30]
[401267668,1768085445893,-2479.36,0.00036712,30]
[401267670,1768085445904,-2479.36,0.00036712,30]
[401267672,1768085445914,-2479.42,0.00036712,30]
[401267674,1768085445923,-16880.2,0.00036712,30]
[401267677,1768085445935,-16880.2,0.00036712,30]
[401267679,1768085445944,-16880.2,0.00036712,30]
[401267681,1768085445953,-16880.2,0.00036712,30]
[401267683,1768085445964,-16880.2,0.00036712,30]
[401267685,1768085445974,-514.50960578,0.00036712,30]
[401267687,1768085445985,-16880.2,0.00036712,30]
[401267689,1768085445995,-16880.2,0.00036712,30]
[401267691,1768085446004,-16880.2,0.00036712,30]
[401267693,1768085446015,-16880.2,0.00036712,30]
[401267695,1768085446023,-16880.2,0.00036712,30]
[401267696,1768085446032,-16880.2,0.00036712,30]
[401267699,1768085446042,-16880.2,0.00036712,30]
[401267701,1768085446051,-16880.2,0.00036712,30]
[401267702,1768085446060,-16880.2,0.00036712,30]
[401267704,1768085446069,-16880.2,0.00036712,30]
[401267706,1768085446078,-16880.2,0.00036712,30]
[401267708,1768085446087,-16880.2,0.00036712,30]
[401267710,1768085446097,-16880.2,0.00036712,30]
[401267712,1768085446106,-16880.2,0.00036712,30]
[401267714,1768085446115,-16880.2,0.00036712,30]
[401267716,1768085446124,-16880.2,0.00036712,30]
[401267718,1768085446133,-16880.2,0.00036712,30]
[401267720,1768085446143,-16880.2,0.00036712,30]
[401267722,1768085446152,-16880.27659401,0.00036712,30]
[401267724,1768085446161,-508.62032327,0.00036712,30]
[401267726,1768085446171,-534.50551265,0.00036712,30]
[401267728,1768085446179,-510.91021208,0.00036712,30]
[401267730,1768085446188,-609.31321311,0.00036712,30]
[401267732,1768085446198,-548.84786937,0.00036712,30]
[401267734,1768085446206,-500.0,0.00036712,30]
[401267736,1768085446215,-4887.27,0.00036712,30]
[401267738,1768085446225,-4887.27,0.00036712,30]
[401267740,1768085446234,-4887.27,0.00036712,30]
[401267742,1768085446244,-4887.27,0.00036712,30]
[401267744,1768085446253,-4887.27,0.00036712,30]
[401267746,1768085446262,-4887.27,0.00036712,30]
[401267748,1768085446274,-4887.27,0.00036712,30]
[401267750,1768085446283,-4887.27,0.00036712,30]
[401267752,1768085446292,-502.73324908,0.00036712,30]
[401267754,1768085446302,-4887.27,0.00036712,30]
[401267756,1768085446313,-4887.27,0.00036712,30]
[401267758,1768085446322,-4887.27,0.00036712,30]
[401267759,1768085446335,-4887.27,0.00036712,30]
[401267761,1768085446347,-4887.27,0.00036712,30]
[401267763,1768085446359,-4887.27,0.00036712,30]
[401267765,1768085446369,-4887.27,0.00036712,30]
[401267767,1768085446379,-4887.27,0.00036712,30]
[401267769,1768085446389,-4887.27,0.00036712,30]
[401267772,1768085446399,-4887.27,0.00036712,30]
[401267773,1768085446408,-4887.27,0.00036712,30]
[401267776,1768085446419,-4887.27,0.00036712,30]
[401267778,1768085446428,-4887.27,0.00036712,30]
[401267780,1768085446438,-4887.27,0.00036712,30]
[401267782,1768085446447,-4887.27,0.00036712,30]
[401267784,1768085446456,-4887.3,0.00036712,30]
[401267785,1768085446466,-500.0,0.00036712,30]
[401267787,1768085446475,-2216.62,0.00036712,30]
[401267788,1768085446484,-2216.62,0.00036712,30]
[401267789,1768085446493,-2216.62,0.00036712,30]
[401267790,1768085446502,-2216.62,0.00036712,30]
[401267791,1768085446512,-519.73496402,0.00036712,30]
[401267792,1768085446522,-2216.62,0.00036712,30]
[401267793,1768085446531,-2216.62,0.00036712,30]
[401267794,1768085446539,-2216.62,0.00036712,30]
[401267795,1768085446549,-2216.62,0.00036712,30]
[401267796,1768085446558,-2216.62,0.00036712,30]
[401267797,1768085446567,-2216.62,0.00036712,30]
[401267798,1768085446577,-2216.62,0.00036712,30]
[401267799,1768085446586,-2216.62,0.00036712,30]
[401267801,1768085446596,-2216.62,0.00036712,30]
[401267802,1768085446606,-424.5297913,0.00036712,30]
[401267803,1768085446616,-2216.62,0.00036712,30]
[401267805,1768085446625,-2216.62,0.00036712,30]
[401267806,1768085446635,-2216.62,0.00036712,30]
[401267807,1768085446645,-2216.62,0.00036712,30]
[401267808,1768085446654,-2216.62,0.00036712,30]
[401267809,1768085446664,-2216.62,0.00036712,30]
[401267810,1768085446675,-2216.62,0.00036712,30]
[401267811,1768085446685,-2216.62,0.00036712,30]
[401267812,1768085446698,-2216.62,0.00036712,30]
[401267813,1768085446708,-2216.62,0.00036712,30]
[401267814,1768085446717,-2216.79,0.00036712,30]
[401267815,1768085446727,-151.0,0.00036712,31]
[401267816,1768085446736,-503.75250608,0.00036712,30]
[401267817,1768085446746,-240.800018,0.00036712,31]
[401267818,1768085446755,-507.79933759,0.00036712,30]
[401267819,1768085446764,-2224.36,0.00036712,30]
[401267820,1768085446774,-2224.36,0.00036712,30]
[401267821,1768085446784,-151.0,0.00036712,31]
[401267822,1768085446793,-2224.36,0.00036712,30]
[401267823,1768085446804,-2224.36,0.00036712,30]
[401267824,1768085446813,-2224.36,0.00036712,30]
[401267825,1768085446823,-2224.36,0.00036712,30]
[401267826,1768085446832,-2224.36,0.00036712,30]
[401267827,1768085446841,-2224.36,0.00036712,30]
[401267828,1768085446850,-2224.36,0.00036712,30]
[401267829,1768085446861,-151.0,0.00036712,31]
[401267830,1768085446871,-530.64516971,0.00036712,30]
[401267831,1768085446880,-2224.36,0.00036712,30]
[401267832,1768085446889,-2224.36,0.00036712,30]
[401267833,1768085446899,-2224.36,0.00036712,30]
[401267834,1768085446910,-2224.36,0.00036712,30]
[401267835,1768085446920,-2224.36,0.00036712,30]
[401267836,1768085446930,-2224.36,0.00036712,30]
[401267837,1768085446939,-2224.36,0.00036712,30]
[401267838,1768085446949,-2224.36,0.00036712,30]
[401267839,1768085446958,-2224.36,0.00036712,30]
[401267840,1768085446968,-2224.36,0.00036712,30]
[401267841,1768085446977,-2224.36,0.00036712,30]
[401267842,1768085446987,-2224.36,0.00036712,30]
[401267843,1768085446996,-2224.36,0.00036712,30]
[401267844,1768085447006,-2224.36,0.00036712,30]
[401267845,1768085447015,-2224.53340001,0.00036712,30]
[401267846,1768085447025,-516.27122304,0.00036712,30]
[401267847,1768085447034,-512.71326822,0.00036712,30]
[401267848,1768085447044,-513.85673291,0.00036712,30]
[401267849,1768085447053,-241.15003758,0.00036712,120]
[401267850,1768085447062,-500.0,0.00036712,30]
[401267851,1768085447071,-500.0,0.00036712,30]
[401267852,1768085447080,-500.0,0.00036712,30]
[401267853,1768085447090,-505.77209003,0.00036712,30]
[401267854,1768085447099,-546.28295531,0.00036712,30]
[401267855,1768085447109,-507.12689469,0.00036712,30]
[401267856,1768085447118,-26278.29,0.00036712,30]
[401267857,1768085447127,-26278.29,0.00036712,30]
[401267858,1768085447137,-26278.29,0.00036712,30]
[401267859,1768085447146,-26278.29,0.00036712,30]
[401267860,1768085447155,-26278.29,0.00036712,30]
[401267861,1768085447165,-26278.29,0.00036712,30]
[401267862,1768085447175,-26278.29,0.00036712,30]
[401267863,1768085447184,-26278.29,0.00036712,30]
[401267864,1768085447194,-26278.29,0.00036712,30]
[401267865,1768085447203,-501.63141378,0.00036712,30]
[401267866,1768085447213,-26278.29,0.00036712,30]
[401267867,1768085447222,-26278.29,0.00036712,30]
[401267868,1768085447232,-519.57890422,0.00036712,30]
[401267869,1768085447241,-26278.29,0.00036712,30]
[401267870,1768085447251,-26278.29,0.00036712,30]
[401267871,1768085447261,-26278.29,0.00036712,30]
[401267872,1768085447271,-479.331389,0.00036712,31]
[401267873,1768085447281,-26278.29,0.00036712,30]
[401267874,1768085447292,-26278.29,0.00036712,30]
[401267875,1768085447301,-26278.29,0.00036712,30]
[401267876,1768085447310,-26278.29,0.00036712,30]
[401267877,1768085447321,-500.0,0.00036712,30]
[401267878,1768085447332,-26278.29,0.00036712,30]
[401267879,1768085447343,-264.02782837,0.00036712,30]
[401267880,1768085447352,-26278.29,0.00036712,30]
[401267881,1768085447363,-479.331389,0.00036712,31]
[401267882,1768085447372,-26278.29,0.00036712,30]
[401267883,1768085447383,-26278.29,0.00036712,30]
[401267884,1768085447392,-26278.29,0.00036712,30]
[401267885,1768085447402,-479.331389,0.00036712,31]
[401267886,1768085447412,-26278.45452659,0.00036712,30]
[401267887,1768085447422,-479.331389,0.00036712,31]
[401267888,1768085447432,-500.0,0.00036712,30]
[401267889,1768085447442,-514.99030424,0.00036712,30]
[401267890,1768085447451,-502.02662521,0.00036712,30]
[401267891,1768085447461,-292.0,0.00036712,30]
[401267892,1768085447471,-5048.48,0.00036712,30]
[401267893,1768085447481,-5048.48,0.00036712,30]
[401267894,1768085447490,-5048.48,0.00036712,30]
[401267895,1768085447500,-5048.48,0.00036712,30]
[401267896,1768085447509,-5048.48,0.00036712,30]
[401267897,1768085447529,-5048.48,0.00036712,30]
[401267898,1768085447540,-5048.48,0.00036712,30]
[401267899,1768085447550,-5048.48,0.00036712,30]
[401267900,1768085447560,-5048.48,0.00036712,30]
[401267901,1768085447570,-5048.48,0.00036712,30]
[401267902,1768085447580,-5048.48,0.00036712,30]
[401267903,1768085447590,-5048.48,0.00036712,30]
[401267904,1768085447600,-5048.48,0.00036712,30]
[401267905,1768085447611,-5048.48,0.00036712,30]
[401267906,1768085447620,-5048.48,0.00036712,30]
[401267907,1768085447630,-5048.48,0.00036712,30]
[401267908,1768085447640,-5048.48,0.00036712,30]
[401267909,1768085447659,-5048.48,0.00036712,30]
[401267910,1768085447669,-5048.48,0.00036712,30]
[401267911,1768085447679,-245.445707,0.00036712,31]
[401267912,1768085447688,-5048.48,0.00036712,30]
[401267913,1768085447829,-5048.48,0.00036712,30]
[401267914,1768085447839,-5048.48,0.00036712,30]
[401267915,1768085447849,-5048.48,0.00036712,30]
[401267916,1768085447861,-5048.65,0.00036712,30]
[401267917,1768085447870,-245.445707,0.00036712,31]
[401267918,1768085447879,-194.07996615,0.00036712,30]
[401267919,1768085447889,-245.445707,0.00036712,31]
[401267920,1768085447902,-245.445707,0.00036712,31]
[401267921,1768085447911,-151.895159,0.00036712,31]
[401267922,1768085447920,-202.167956,0.00036712,31]
[401267923,1768085447931,-151.895159,0.00036712,31]
[401267924,1768085447940,-190.56820041,0.00036712,30]
[401267925,1768085447949,-151.895159,0.00036712,31]
[401267926,1768085447959,-151.895159,0.00036712,31]
[401267927,1768085447968,-151.0,0.00036712,31]
[401267928,1768085447977,-517.57408613,0.00036712,30]
[401267929,1768085447987,-151.366366,0.00036712,2]
[401267930,1768085448000,-510.26854716,0.00036712,30]
[401267931,1768085448010,-508.72813219,0.00036712,30]
[401267932,1768085448019,-502.13581752,0.00036712,30]
[401267933,1768085448028,-503.58612392,0.00036712,30]
[401267934,1768085448038,-504.58187361,0.00036712,30]
[401267935,1768085448047,-153.24451864,0.00036712,30]
[401267936,1768085448056,-500.0,0.00036712,30]
[401267937,1768085448065,-962.73,0.00036712,30]
[401267938,1768085448074,-962.73,0.00036712,30]
[401267939,1768085448084,-962.73,0.00036712,30]
[401267940,1768085448093,-281.2129169,0.00036712,30]
[401267941,1768085448102,-515.32820392,0.00036712,30]
[401267942,1768085448111,-564.76418067,0.00036712,30]
[401267943,1768085448120,-151.0,0.00036712,31]
[401267944,1768085448130,-151.0,0.00036712,31]
[401267945,1768085448139,-151.0,0.00036712,31]
[401267946,1768085448148,-503.30308502,0.00036712,30]
[401267947,1768085448158,-962.73,0.00036712,30]
[401267948,1768085448167,-962.73,0.00036712,30]
[401267949,1768085448176,-545.21658131,0.00036712,30]
[401267950,1768085448186,-962.73,0.00036712,30]
[401267951,1768085448195,-962.73,0.00036712,30]
[401267952,1768085448205,-962.73,0.00036712,30]
[401267953,1768085448214,-962.73,0.00036712,30]
[401267954,1768085448224,-962.73,0.00036712,30]
[401267955,1768085448235,-962.73,0.00036712,30]
[401267956,1768085448246,-962.73,0.00036712,30]
[401267957,1768085448257,-962.73,0.00036712,30]
[401267958,1768085448267,-537.6308808,0.00036712,30]
[401267959,1768085448278,-962.73,0.00036712,30]
[401267960,1768085448290,-255.59781184,0.00036712,30]
[401267961,1768085448300,-962.73,0.00036712,30]
[401267962,1768085448311,-171.590858,0.00036712,31]
[401267963,1768085448321,-962.73,0.00036712,30]
[401267964,1768085448330,-492.31732817,0.00036712,30]
[401267965,1768085448343,-962.73,0.00036712,30]
[401267966,1768085448353,-962.73,0.00036712,30]
[401267967,1768085448363,-962.73,0.00036712,30]
[401267968,1768085448373,-243.59740155,0.00036712,30]
[401267969,1768085448382,-962.73,0.00036712,30]
[401267970,1768085448393,-962.73,0.00036712,30]
[401267971,1768085448403,-962.73,0.00036712,30]
[401267972,1768085448413,-962.73,0.00036712,30]
[401267973,1768085448422,-962.82753936,0.00036712,30]
[401267974,1768085448432,-462.60317284,0.00036712,30]
[401267975,1768085448442,-2293.74,0.00036712,30]
[401267976,1768085448453,-2293.74,0.00036712,30]
[401267977,1768085448462,-2293.74,0.00036712,30]
[401267978,1768085448472,-500.0,0.00036712,2]
[401267979,1768085448483,-2293.74,0.00036712,30]
[401267980,1768085448493,-500.0,0.00036712,2]
[401267981,1768085448504,-2293.74,0.00036712,30]
[401267982,1768085448514,-500.0,0.00036712,2]
[401267983,1768085448530,-519.14998941,0.00036712,30]
[401267984,1768085448540,-2293.74,0.00036712,30]
[401267985,1768085448549,-500.0,0.00036712,2]
[401267986,1768085448559,-501.82493235,0.00036712,30]
[401267987,1768085448568,-253.53454304,0.00036712,30]
[401267988,1768085448579,-2293.74,0.00036712,30]
[401267989,1768085448589,-500.0,0.00036712,2]
[401267990,1768085448599,-2293.74,0.00036712,30]
[401267991,1768085448608,-500.0,0.00036712,2]
[401267992,1768085448618,-2293.74,0.00036712,30]
[401267993,1768085448628,-500.0,0.00036712,2]
[401267994,1768085448638,-2293.74,0.00036712,30]
[401267995,1768085448648,-500.0,0.00036712,2]
[401267996,1768085448659,-505.57663018,0.00036712,30]
[401267997,1768085448668,-2293.74,0.00036712,30]
[401267998,1768085448678,-500.0,0.00036712,2]
[401267999,1768085448690,-2293.74,0.00036712,30]
[401268000,1768085448700,-500.0,0.00036712,2]
[401268001,1768085448710,-2293.74,0.00036712,30]
[401268002,1768085448720,-500.0,0.00036712,2]
[401268003,1768085448730,-2293.74,0.00036712,30]
[401268004,1768085448739,-500.0,0.00036712,2]
[401268005,1768085448750,-2293.74,0.00036712,30]
[401268006,1768085448759,-500.0,0.00036712,2]
[401268007,1768085448769,-2293.74,0.00036712,30]
[401268008,1768085448778,-500.0,0.00036712,2]
[401268009,1768085448790,-2293.74,0.00036712,30]
[401268010,1768085448800,-500.0,0.00036712,2]
[401268011,1768085448811,-2293.74,0.00036712,30]
[401268012,1768085448820,-500.0,0.00036712,2]
[401268013,1768085448830,-502.32745149,0.00036712,2]
[401268014,1768085448839,-2293.74,0.00036712,30]
[401268015,1768085448849,-558.93259769,0.00036712,30]
[401268016,1768085448865,-2293.74,0.00036712,30]
[401268017,1768085448876,-151.0,0.00036712,31]
[401268018,1768085448887,-2293.74,0.00036712,30]
[401268019,1768085448899,-2293.74,0.00036712,30]
[401268020,1768085448908,-2293.74,0.00036712,30]
[401268021,1768085448918,-2293.83,0.00036712,30]
[401268022,1768085448927,-151.0,0.00036712,31]
[401268023,1768085448939,-209.54240035,0.00036712,30]
[401268024,1768085448948,-500.0,0.00036712,30]
[401268025,1768085448958,-607.40648212,0.00036712,30]
[401268026,1768085448967,-507.63257534,0.00036712,30]
[401268027,1768085448977,-504.16898208,0.00036712,30]
[401268028,1768085448987,-542.99461457,0.00036712,30]
[401268029,1768085448996,-579.98652351,0.00036712,30]
[401268030,1768085449006,-500.0,0.00036712,30]